bitfinex-derivatives/quotes_BTCF0:USTF0_20250320
["timestamp","ask_amount","ask_price","bid_price","bid_amount"]
[1742476384679,0.23092595,85355.0,85354.0,0.1172036]
[1742476384879,0.29912595,85355.0,85354.0,0.1172036]
[1742476385072,0.29912583,85355.0,85354.0,0.1172036]
[1742476385276,0.19912583,85355.0,85354.0,0.1172036]
[1742476385483,0.23092583,85355.0,85354.0,0.1172036]
[1742476385679,0.29912583,85355.0,85354.0,0.1172036]
[1742476387185,0.2895663,85355.0,85354.0,0.1172036]
[1742476387988,0.1172036,85354.0,85353.0,1.6187246]
[1742476388177,0.1172036,85354.0,85353.0,1.6172446]
[1742476388378,0.1833036,85354.0,85353.0,1.6172446]
[1742476388574,0.1833036,85354.0,85353.0,4e-05]
[1742476388779,0.1172173,85344.0,85343.0,0.00017574]
[1742476388990,0.2172173,85344.0,85343.0,0.00017574]
[1742476389288,0.32643128,85344.0,85343.0,0.11739444]
[1742476389474,0.33610381,85344.0,85343.0,0.00017574]
[1742476390492,0.34561574,85344.0,85343.0,0.00017574]
[1742476391084,0.24561574,85344.0,85343.0,0.00017574]
[1742476391277,0.33623088,85344.0,85343.0,0.00017574]
[1742476392390,0.34575716,85344.0,85343.0,0.00017574]
[1742476394383,0.24575716,85344.0,85343.0,0.00017574]
[1742476394693,0.34575716,85344.0,85343.0,0.00017574]
[1742476395082,0.34586495,85344.0,85343.0,0.00017574]
[1742476399491,0.24589505,85344.0,85343.0,0.00017574]
[1742476399696,0.34589505,85344.0,85343.0,0.00017574]
[1742476400994,0.34589505,85344.0,85343.0,1.56247574]
[1742476401298,0.3459425,85344.0,85343.0,1.53027574]
[1742476401689,0.3459425,85344.0,85343.0,0.03027574]
[1742476401999,0.3459425,85344.0,85343.0,0.00017574]
[1742476402196,0.32643128,85344.0,85343.0,0.00017574]
[1742476403002,0.3364368,85344.0,85343.0,0.00017574]
[1742476403191,0.3364368,85344.0,85340.0,0.1493225]
[1742476403192,0.1172215,85341.0,85340.0,0.0321]
[1742476403393,0.1172242,85339.0,85338.0,0.1172242]
[1742476403588,0.24356748,85339.0,85338.0,0.1493242]
[1742476403796,0.20566748,85339.0,85338.0,0.1816242]
[1742476404102,0.31542204,85339.0,85338.0,0.1816242]
[1742476404697,0.21542204,85339.0,85338.0,0.1816242]
[1742476404895,0.21542204,85339.0,85338.0,0.0644]
[1742476405099,0.19908428,85339.0,85338.0,0.0644]
[1742476405286,0.29908428,85339.0,85338.0,0.0644]
[1742476406097,0.29908428,85339.0,85338.0,0.1816256]
[1742476407000,0.29908196,85339.0,85338.0,0.1816256]
[1742476413902,0.29908196,85339.0,85338.0,0.0644]
[1742476414100,0.19908196,85339.0,85338.0,0.0644]
[1742476414606,0.19908196,85339.0,85338.0,0.1816256]
[1742476415000,0.19880841,85339.0,85338.0,0.1816256]
[1742476417199,0.19879438,85339.0,85338.0,0.1816256]
[1742476417599,0.19879438,85339.0,85338.0,0.2130256]
[1742476417799,0.16779438,85339.0,85338.0,0.2130256]
[1742476418500,0.16779438,85339.0,85338.0,1.7130256]
[1742476419106,0.17689438,85339.0,85338.0,1.7130256]
[1742476420699,0.37516,85339.0,85338.0,1.7130256]
[1742476421198,0.34309766,85339.0,85338.0,1.7130256]
[1742476421399,0.31199766,85339.0,85338.0,1.7130256]
[1742476422908,0.13673204,85339.0,85338.0,1.7130256]
[1742476423715,0.16853204,85339.0,85338.0,1.7130256]
[1742476424514,0.13673204,85339.0,85338.0,1.7130256]
[1742476424911,0.16853204,85339.0,85338.0,1.7130256]
[1742476425112,0.19995489,85339.0,85338.0,1.7130256]
[1742476427116,0.19995665,85339.0,85338.0,1.7130256]
[1742476429724,0.19995665,85339.0,85338.0,0.2130256]
[1742476431120,0.19994332,85339.0,85338.0,0.2130256]
[1742476435122,0.19989249,85339.0,85338.0,0.2130256]
[1742476436310,0.19988722,85339.0,85338.0,0.2130256]
[1742476436525,0.19989925,85339.0,85338.0,0.2130256]
[1742476436718,0.19017876,85339.0,85338.0,0.2130256]
[1742476436918,0.19989951,85339.0,85338.0,0.1816256]
[1742476439326,0.19994295,85339.0,85338.0,0.1816256]
[1742476443325,0.20007537,85339.0,85338.0,0.1816256]
[1742476443924,0.40424725,85339.0,85338.0,0.0321]
[1742476444125,0.37534725,85339.0,85338.0,0.0321]
[1742476444825,0.37534725,85339.0,85338.0,0.1811256]
[1742476446528,0.20007537,85339.0,85338.0,0.1811256]
[1742476449131,0.20017627,85339.0,85338.0,0.1811256]
[1742476449842,7e-08,85339.0,85338.0,0.1811256]
[1742476450130,0.21032625,85346.0,85345.0,0.117216]
[1742476450430,0.21032625,85346.0,85345.0,2.091256]
[1742476450640,0.21032625,85346.0,85345.0,2.156556]
[1742476453536,0.17286396,85349.0,85348.0,0.1172118]
[1742476454031,0.1172146,85346.0,85345.0,0.00152]
[1742476454338,0.1172201,85342.0,85341.0,0.0311]
[1742476454538,0.0586086,85344.0,85341.0,0.1483215]
[1742476454729,0.1833187,85343.0,85342.0,0.1758301]
[1742476454929,0.1833187,85343.0,85342.0,0.2071301]
[1742476457432,0.2833187,85343.0,85342.0,0.2071301]
[1742476459934,0.2833187,85343.0,85342.0,1.7071301]
[1742476460944,0.1833187,85343.0,85342.0,1.7071301]
[1742476461643,0.2833187,85343.0,85342.0,1.7071301]
[1742476462039,0.30264594,85343.0,85342.0,1.7071301]
[1742476463443,0.44293818,85343.0,85342.0,1.7071301]
[1742476464542,0.34293818,85343.0,85342.0,1.7071301]
[1742476465642,0.34293818,85343.0,85342.0,0.2071301]
[1742476466838,0.33331214,85343.0,85342.0,0.2071301]
[1742476467139,0.34295118,85343.0,85342.0,0.2071301]
[1742476468845,0.30957233,85343.0,85342.0,0.2071301]
[1742476469631,0.34257233,85343.0,85342.0,0.2071301]
[1742476470845,0.20228009,85343.0,85342.0,0.3203701]
[1742476476953,0.20236262,85343.0,85342.0,0.3203701]
[1742476477149,0.20236262,85343.0,85342.0,0.2890701]
[1742476477553,0.34265486,85343.0,85342.0,0.2890701]
[1742476478846,0.34279229,85343.0,85342.0,0.2890701]
[1742476479050,0.34279229,85343.0,85342.0,0.1758301]
[1742476479250,0.44279229,85343.0,85342.0,0.1758301]
[1742476479846,0.45927919,85343.0,85342.0,0.14944523]
[1742476480146,0.35927919,85343.0,85342.0,0.14944523]
[1742476480953,0.21906277,85343.0,85342.0,0.14944523]
[1742476481751,0.23523049,85343.0,85342.0,0.14944523]
[1742476482054,0.33523049,85343.0,85342.0,0.14944523]
[1742476482655,0.33523049,85343.0,85342.0,0.1172201]
[1742476482851,0.33531639,85343.0,85342.0,0.1172201]
[1742476483558,0.23531639,85343.0,85342.0,0.1172201]
[1742476483744,0.33531639,85343.0,85342.0,0.1172201]
[1742476484851,0.30872546,85343.0,85342.0,0.1172201]
[1742476485058,0.33539421,85343.0,85342.0,0.1172201]
[1742476485450,0.33539421,85343.0,85342.0,0.1500201]
[1742476485960,0.23539421,85343.0,85342.0,0.1500201]
[1742476486948,0.21898267,85343.0,85342.0,1.6815201]
[1742476487551,0.20281495,85343.0,85342.0,1.6815201]
[1742476491456,0.20281495,85343.0,85342.0,0.1815201]
[1742476492757,0.20238317,85343.0,85342.0,0.1815201]
[1742476493961,0.19255774,85343.0,85342.0,0.1815201]
[1742476494855,0.20218592,85343.0,85342.0,0.1815201]
[1742476496764,0.20218072,85343.0,85342.0,0.1815201]
[1742476497555,0.19254168,85343.0,85342.0,0.1815201]
[1742476497957,0.1829187,85343.0,85342.0,0.1815201]
[1742476507370,0.1829187,85343.0,85342.0,1.6815201]
[1742476508767,0.1502187,85343.0,85342.0,1.6815201]
[1742476508971,0.1830187,85343.0,85342.0,1.6815201]
[1742476510770,0.1172173,85345.0,85344.0,0.117216]
[1742476510967,0.1172173,85345.0,85344.0,0.230416]
[1742476511471,0.1172173,85345.0,85344.0,1.730416]
[1742476512469,0.1479173,85345.0,85344.0,1.730416]
[1742476512659,0.1802173,85345.0,85344.0,1.730416]
[1742476513458,0.1802173,85345.0,85344.0,1.74215154]
[1742476515564,0.1802173,85345.0,85344.0,0.24215154]
[1742476519067,0.17554349,85351.0,85350.0,0.1172091]
[1742476519375,0.17554349,85351.0,85350.0,0.2304091]
[1742476519870,0.32345119,85351.0,85350.0,0.2304091]
[1742476520060,0.35575119,85351.0,85350.0,0.2304091]
[1742476520458,0.35575119,85351.0,85350.0,0.1172091]
[1742476520674,0.36560565,85351.0,85350.0,0.1172091]
[1742476520970,0.19006216,85351.0,85350.0,0.1172091]
[1742476521156,0.29973934,85351.0,85350.0,0.1172091]
[1742476524872,0.1172091,85350.0,85349.0,4e-05]
[1742476525068,0.12706356,85350.0,85349.0,4e-05]
[1742476525264,0.20124074,85350.0,85349.0,4e-05]
[1742476525773,0.20124074,85350.0,85349.0,0.1172105]
[1742476526265,0.20137555,85350.0,85349.0,0.1172105]
[1742476526471,0.1172105,85349.0,85348.0,4e-05]
[1742476526660,0.15909977,85349.0,85348.0,0.1172518]
[1742476526864,0.22049977,85349.0,85348.0,0.1172518]
[1742476527064,0.22049977,85349.0,85348.0,1.6172518]
[1742476527266,0.23017695,85349.0,85348.0,1.6172518]
[1742476527874,0.33017695,85349.0,85348.0,1.6172518]
[1742476528169,0.32018768,85349.0,85348.0,1.6172518]
[1742476528363,0.33017118,85349.0,85348.0,4e-05]
[1742476528767,0.1172173,85344.0,85343.0,0.0304]
[1742476528979,0.2272008,85344.0,85343.0,0.0304]
[1742476529162,0.2886008,85344.0,85343.0,0.0304]
[1742476529366,0.2886008,85344.0,85343.0,1.5304]
[1742476529567,0.29827798,85344.0,85343.0,1.5304]
[1742476530068,0.29827798,85344.0,85343.0,1.6805187]
[1742476530269,0.2982583,85344.0,85343.0,1.6805187]
[1742476530570,0.1982583,85344.0,85343.0,1.5304]
[1742476530777,0.2982583,85344.0,85343.0,1.5304]
[1742476531978,0.2982583,85344.0,85343.0,1.6476187]
[1742476532173,0.2982583,85344.0,85343.0,1.5304]
[1742476532372,0.1172187,85343.0,85342.0,0.3608]
[1742476532572,0.1172256,85338.0,85337.0,0.2630861]
[1742476532879,0.22718942,85338.0,85337.0,1.7630861]
[1742476533569,0.2368666,85338.0,85337.0,1.7630861]
[1742476533773,0.1368666,85338.0,85337.0,1.7630861]
[1742476534075,0.2368666,85338.0,85337.0,1.8803125]
[1742476534577,0.2984666,85338.0,85337.0,1.8803125]
[1742476536176,0.2984666,85338.0,85337.0,1.7630861]
[1742476536780,0.2984666,85338.0,85337.0,1.7953861]
[1742476537480,0.1984666,85338.0,85337.0,1.7953861]
[1742476539184,0.2984666,85338.0,85337.0,1.7953861]
[1742476540186,0.29863417,85338.0,85337.0,1.7953861]
[1742476540686,0.29863392,85338.0,85337.0,1.7953861]
[1742476540880,0.3149021,85338.0,85337.0,1.7953861]
[1742476541782,0.45517842,85338.0,85337.0,1.7953861]
[1742476542080,0.4552177,85338.0,85337.0,1.7953861]
[1742476543478,0.3552177,85338.0,85337.0,1.7953861]
[1742476543682,0.4552177,85338.0,85337.0,1.7953861]
[1742476546179,0.45617081,85338.0,85337.0,1.7953861]
[1742476548776,0.34649363,85338.0,85337.0,1.7953861]
[1742476548990,0.44649363,85338.0,85337.0,1.7953861]
[1742476549589,0.47287831,85338.0,85337.0,1.7953861]
[1742476549785,0.33260199,85338.0,85337.0,1.7953861]
[1742476549990,0.33260199,85338.0,85337.0,1.67816]
[1742476550192,0.33261707,85338.0,85337.0,1.795387]
[1742476551386,0.33261707,85338.0,85337.0,1.67816]
[1742476551588,0.26151707,85338.0,85337.0,0.065]
[1742476551777,0.1172352,85331.0,85330.0,0.00017574]
[1742476551981,0.24464199,85331.0,85330.0,0.00017574]
[1742476552179,0.30704576,85331.0,85330.0,0.00017574]
[1742476552384,0.23343044,85331.0,85330.0,0.00017574]
[1742476553092,0.26593044,85331.0,85330.0,0.06507574]
[1742476553494,0.26593044,85331.0,85330.0,0.07678463]
[1742476553880,0.26593044,85331.0,85330.0,0.06507574]
[1742476554081,0.26593044,85331.0,85330.0,0.18231234]
[1742476555094,0.26593044,85331.0,85330.0,0.21511234]
[1742476556085,0.26521235,85331.0,85330.0,0.21511234]
[1742476556892,0.26521235,85331.0,85330.0,0.18311234]
[1742476558102,0.26521359,85331.0,85330.0,0.18311234]
[1742476560300,0.23801988,85331.0,85330.0,0.18311234]
[1742476560501,0.26518593,85331.0,85330.0,0.18311234]
[1742476560997,0.0586196,85328.0,85325.0,0.3608]
[1742476561199,0.1172421,85326.0,85325.0,0.3608]
[1742476561395,0.14440815,85326.0,85325.0,0.3608]
[1742476561590,0.20770815,85326.0,85325.0,0.3608]
[1742476561790,0.23409283,85326.0,85325.0,0.3608]
[1742476561987,0.24597912,85326.0,85325.0,0.3608]
[1742476562191,0.24580609,85326.0,85325.0,0.3608]
[1742476562696,0.2339198,85326.0,85325.0,0.4780434]
[1742476563301,0.2339198,85326.0,85325.0,0.5086434]
[1742476564204,0.2339198,85326.0,85325.0,2.0389434]
[1742476565794,0.2339198,85326.0,85325.0,2.1521034]
[1742476566105,0.23401358,85326.0,85325.0,2.1521034]
[1742476570100,0.23340851,85326.0,85325.0,2.1521034]
[1742476570897,0.17010851,85326.0,85325.0,2.1521034]
[1742476571594,0.23280851,85326.0,85325.0,2.1521034]
[1742476572002,0.23305484,85326.0,85325.0,2.1521034]
[1742476574194,0.3381998,85326.0,85325.0,2.1521034]
[1742476575098,0.32196307,85326.0,85325.0,2.1521034]
[1742476576899,0.14202097,85326.0,85325.0,2.1521034]
[1742476577211,0.0761253,85326.0,85325.0,2.4221034]
[1742476577606,0.14007793,85330.0,85328.0,0.0586196]
[1742476577911,0.14007793,85330.0,85329.0,0.1792379]
[1742476578310,0.14007793,85330.0,85329.0,1.6792379]
[1742476580807,0.0316,85331.0,85330.0,0.1172366]
[1742476581008,0.0316,85331.0,85330.0,0.2114366]
[1742476584002,0.0316,85331.0,85330.0,1.7114366]
[1742476586911,0.0316,85331.0,85330.0,1.9714366]
[1742476587809,0.14007793,85338.0,85337.0,0.117227]
[1742476588015,0.17217793,85338.0,85337.0,0.851187]
[1742476588202,0.17217793,85338.0,85337.0,0.945687]
[1742476588397,0.17217793,85338.0,85337.0,2.445687]
[1742476589003,0.18207444,85338.0,85337.0,2.445687]
[1742476589205,0.18190997,85338.0,85337.0,2.445687]
[1742476589409,0.19186641,85338.0,85337.0,2.445687]
[1742476589805,0.22506641,85338.0,85337.0,2.445687]
[1742476591104,0.08498848,85338.0,85337.0,2.445687]
[1742476591304,0.08498848,85338.0,85337.0,2.415187]
[1742476593113,0.07525644,85338.0,85337.0,2.415187]
[1742476594414,0.14007793,85342.0,85341.0,0.1172215]
[1742476594621,0.05813153,85342.0,85341.0,0.7280215]
[1742476594820,0.05813153,85342.0,85341.0,0.8222215]
[1742476595006,0.05813153,85342.0,85341.0,2.3222215]
[1742476595410,0.0635,85351.0,85350.0,0.1172091]
[1742476595716,0.0635,85351.0,85350.0,0.60279767]
[1742476595917,0.0635,85351.0,85350.0,0.66379767]
[1742476597117,0.0635,85351.0,85350.0,2.16379767]
[1742476597518,0.096,85351.0,85350.0,2.16379767]
[1742476598322,0.0634,85351.0,85350.0,2.16379767]
[1742476599219,0.00017574,85359.0,85358.0,0.1171981]
[1742476599523,0.00017574,85359.0,85358.0,0.5911181]
[1742476599722,0.00017574,85359.0,85358.0,0.6224181]
[1742476599918,0.00017574,85359.0,85358.0,2.1224181]
[1742476600619,0.00017574,85359.0,85358.0,2.1544181]
[1742476602512,0.03117574,85359.0,85358.0,2.1544181]
[1742476606119,0.04088173,85359.0,85358.0,2.1544181]
[1742476606527,0.05072153,85359.0,85358.0,2.1544181]
[1742476607518,0.05076433,85359.0,85358.0,2.1544181]
[1742476611628,0.05101173,85359.0,85358.0,2.1544181]
[1742476613821,0.05101173,85359.0,85358.0,2.4268181]
[1742476613822,0.02001173,85359.0,85358.0,2.4268181]
[1742476614218,0.0324,85380.0,85379.0,0.1171693]
[1742476614419,0.0324,85380.0,85379.0,0.2302893]
[1742476616328,0.0324,85380.0,85379.0,0.2603893]
[1742476616725,0.0653,85380.0,85379.0,0.2603893]
[1742476616931,0.0653,85380.0,85379.0,0.2302893]
[1742476618627,0.0653,85380.0,85379.0,0.2632893]
[1742476619322,0.0653,85380.0,85379.0,0.2721819]
[1742476619725,0.0653,85380.0,85379.0,0.3049819]
[1742476620229,0.00017574,85388.0,85379.0,0.5486126]
[1742476620428,0.00017574,85388.0,85387.0,0.4779583]
[1742476620734,0.00017574,85388.0,85387.0,0.5910383]
[1742476620934,0.00017574,85388.0,85387.0,0.6882383]
[1742476621323,0.00017574,85388.0,85387.0,0.6568383]
[1742476621636,0.00017574,85388.0,85387.0,0.6882383]
[1742476623935,0.00017574,85388.0,85387.0,0.4779583]
[1742476624230,0.00017574,85388.0,85387.0,0.5910383]
[1742476625921,0.06477574,85388.0,85387.0,0.5910383]
[1742476626322,0.07461117,85388.0,85387.0,0.5910383]
[1742476626638,0.08448461,85388.0,85387.0,0.5910383]
[1742476626838,0.08448585,85388.0,85387.0,0.5910383]
[1742476627238,0.08447943,85388.0,85387.0,0.2302383]
[1742476627440,0.08447943,85388.0,85387.0,0.5910383]
[1742476627627,0.08448094,85388.0,85387.0,0.5910383]
[1742476629537,0.08448094,85388.0,85387.0,0.6554383]
[1742476629938,0.08448094,85388.0,85387.0,0.6232383]
[1742476630138,0.20163784,85388.0,85387.0,0.6232383]
[1742476630342,0.08448094,85388.0,85387.0,0.6232383]
[1742476630943,0.20163784,85388.0,85387.0,0.6232383]
[1742476632746,0.20163399,85388.0,85387.0,0.6232383]
[1742476633335,0.20163399,85388.0,85387.0,0.6556383]
[1742476640148,0.20163399,85388.0,85387.0,2.1556383]
[1742476642750,0.20143429,85388.0,85387.0,2.1556383]
[1742476643050,0.19180608,85388.0,85387.0,2.1556383]
[1742476643851,0.20139477,85388.0,85387.0,2.1556383]
[1742476645947,0.19180608,85388.0,85387.0,2.1556383]
[1742476646149,0.19180608,85388.0,85387.0,2.1886383]
[1742476647152,0.16050608,85388.0,85387.0,2.0755583]
[1742476647452,0.04334918,85388.0,85387.0,2.1885983]
[1742476647659,0.16050608,85388.0,85387.0,2.1885983]
[1742476647844,0.19090608,85388.0,85387.0,2.1885983]
[1742476648044,0.20051713,85388.0,85387.0,2.1885983]
[1742476648946,0.19090608,85388.0,85387.0,2.1885983]
[1742476649653,0.16050608,85388.0,85387.0,2.1885983]
[1742476649860,0.01004918,85388.0,85387.0,2.1885983]
[1742476651956,0.01972384,85388.0,85387.0,2.1885983]
[1742476654358,0.019709,85388.0,85387.0,2.1885983]
[1742476656052,0.019709,85388.0,85387.0,0.6885983]
[1742476660070,0.052309,85388.0,85387.0,0.6555983]
[1742476660263,0.0585806,85385.0,85383.0,0.21093642]
[1742476660452,0.058584,85380.0,85376.0,0.11304]
[1742476660656,0.477972,85377.0,85376.0,0.11304]
[1742476660862,0.1757677,85373.0,85372.0,0.1171779]
[1742476661163,0.18542752,85373.0,85372.0,0.1171779]
[1742476661665,0.19530096,85373.0,85372.0,0.1171779]
[1742476661865,0.25810096,85373.0,85372.0,0.1171779]
[1742476662360,0.1171789,85372.0,85371.0,0.35173644]
[1742476662560,0.15843872,85372.0,85371.0,0.46891674]
[1742476662869,0.19063872,85372.0,85371.0,0.46891674]
[1742476663065,0.2068931,85372.0,85371.0,0.46891674]
[1742476663258,0.2319533,85372.0,85371.0,0.46891674]
[1742476663677,0.24370169,85372.0,85371.0,0.46891674]
[1742476664069,0.24370169,85372.0,85371.0,0.11735604]
[1742476664070,0.12752279,85372.0,85371.0,0.11735604]
[1742476664464,0.12752279,85372.0,85371.0,0.14735604]
[1742476664963,0.13152279,85372.0,85371.0,0.14735604]
[1742476666070,0.24870169,85372.0,85371.0,0.14735604]
[1742476666472,0.24916078,85372.0,85371.0,0.14735604]
[1742476667464,0.60996078,85372.0,85371.0,0.14735604]
[1742476670274,0.59373106,85372.0,85371.0,0.14735604]
[1742476671371,0.10400377,85372.0,85371.0,0.14735604]
[1742476671587,0.22118267,85372.0,85371.0,0.17915604]
[1742476672078,0.22118267,85372.0,85371.0,0.14735604]
[1742476672371,0.22104869,85372.0,85371.0,0.14735604]
[1742476672574,0.20486193,85372.0,85371.0,0.14735604]
[1742476673775,0.21653373,85372.0,85371.0,0.14735604]
[1742476674576,0.09935483,85372.0,85371.0,0.14735604]
[1742476674766,0.20486193,85372.0,85371.0,0.17985604]
[1742476674968,0.20486193,85372.0,85371.0,0.21245604]
[1742476675167,0.22115842,85372.0,85371.0,0.21245604]
[1742476675678,0.23735715,85372.0,85371.0,0.21245604]
[1742476675870,0.23735715,85372.0,85371.0,0.03017574]
[1742476676077,0.59815715,85372.0,85371.0,0.11735604]
[1742476677183,0.59815715,85372.0,85371.0,0.14925604]
[1742476677370,0.60997463,85372.0,85371.0,0.14925604]
[1742476678488,0.60997463,85372.0,85371.0,0.18005604]
[1742476679480,0.60997463,85372.0,85371.0,0.14925604]
[1742476680581,0.60997463,85372.0,85371.0,0.03207574]
[1742476680776,0.60997463,85372.0,85371.0,0.00017574]
[1742476681173,0.59367814,85372.0,85371.0,0.00017574]
[1742476681975,0.1171844,85368.0,85367.0,0.1171853]
[1742476682171,0.1434531,85368.0,85367.0,0.1171853]
[1742476682376,0.2064531,85368.0,85367.0,0.1171853]
[1742476682577,0.23252527,85368.0,85367.0,0.1499853]
[1742476684880,0.26673968,85368.0,85367.0,0.1826853]
[1742476685477,0.40658702,85368.0,85367.0,0.1826853]
[1742476685878,0.50658702,85368.0,85367.0,0.1826853]
[1742476686484,0.50660459,85368.0,85367.0,0.1826853]
[1742476686677,0.50660459,85368.0,85367.0,0.0655]
[1742476686882,0.40660459,85368.0,85367.0,0.0655]
[1742476687275,0.40660459,85368.0,85367.0,0.1826858]
[1742476687472,0.34400459,85368.0,85367.0,0.1826858]
[1742476687874,0.32775802,85368.0,85367.0,0.1826858]
[1742476688884,0.31155929,85368.0,85367.0,0.1826858]
[1742476689985,0.17171195,85368.0,85367.0,0.1826858]
[1742476690287,0.14005526,85368.0,85367.0,0.1826858]
[1742476690481,0.14005526,85368.0,85367.0,0.19464945]
[1742476691390,0.14005526,85368.0,85367.0,0.30768945]
[1742476692186,0.02287086,85368.0,85367.0,0.30768945]
[1742476692489,0.02286158,85368.0,85367.0,0.30768945]
[1742476692989,0.02286158,85368.0,85367.0,1.80768945]
[1742476693479,0.02286158,85368.0,85367.0,0.30768945]
[1742476693987,0.14004598,85368.0,85367.0,0.1826858]
[1742476694184,0.18373497,85368.0,85367.0,0.0655]
[1742476694387,0.3262964,85368.0,85367.0,0.0655]
[1742476694985,0.29537339,85368.0,85367.0,0.0655]
[1742476695789,0.30534357,85368.0,85367.0,0.0655]
[1742476695980,0.3164038,85368.0,85367.0,0.0328]
[1742476697997,0.58802773,85361.0,85360.0,0.031]
[1742476698179,0.577994,85361.0,85360.0,0.031]
[1742476698484,0.0586038,85352.0,85343.0,0.117255]
[1742476698689,0.1172146,85346.0,85345.0,0.1793146]
[1742476698882,0.48805476,85346.0,85345.0,0.1793146]
[1742476699187,0.54945476,85346.0,85345.0,0.1793146]
[1742476699388,0.55943467,85346.0,85345.0,0.1793146]
[1742476699595,0.55843467,85346.0,85345.0,0.1793146]
[1742476700386,0.55843467,85346.0,85345.0,0.1833146]
[1742476701491,0.55843467,85346.0,85345.0,0.1873146]
[1742476702389,0.55832051,85346.0,85345.0,0.1873146]
[1742476702594,0.56999452,85346.0,85345.0,0.1873146]
[1742476704291,0.56998203,85346.0,85345.0,0.1873146]
[1742476704498,0.50858203,85346.0,85345.0,0.1873146]
[1742476704699,0.54088203,85346.0,85345.0,0.1873146]
[1742476705287,0.57208203,85346.0,85345.0,0.1873146]
[1742476706389,0.57208326,85346.0,85345.0,0.1873146]
[1742476707692,0.56216852,85346.0,85345.0,0.1873146]
[1742476707889,0.57207982,85346.0,85345.0,0.1873146]
[1742476708593,0.38069121,85346.0,85345.0,0.1873146]
[1742476708790,0.49790581,85346.0,85345.0,0.1873146]
[1742476711492,0.52860709,85346.0,85345.0,0.1873146]
[1742476714098,0.55970709,85346.0,85345.0,0.1873146]
[1742476714401,0.55983418,85346.0,85345.0,0.1873146]
[1742476714601,0.55983418,85346.0,85345.0,0.0701]
[1742476714792,0.55983418,85346.0,85345.0,0.187316]
[1742476714994,0.57597646,85346.0,85345.0,0.187316]
[1742476715502,0.59219024,85346.0,85345.0,0.187316]
[1742476716296,0.5922841,85346.0,85345.0,0.187316]
[1742476718500,0.57607037,85346.0,85345.0,0.187316]
[1742476718703,0.68088047,85346.0,85345.0,0.187316]
[1742476719703,0.64978047,85346.0,85345.0,0.187316]
[1742476720007,0.53253323,85346.0,85345.0,0.187316]
[1742476720204,0.50183323,85346.0,85345.0,0.187316]
[1742476720605,0.51806149,85346.0,85345.0,0.187316]
[1742476721903,0.15726149,85346.0,85345.0,0.187316]
[1742476722105,0.15726149,85346.0,85345.0,0.417316]
[1742476722406,0.15726149,85346.0,85345.0,1.917316]
[1742476724300,0.15744447,85346.0,85345.0,1.917316]
[1742476725299,0.05263437,85346.0,85345.0,1.917316]
[1742476726410,0.05275875,85346.0,85345.0,1.687316]
[1742476726599,0.03636702,85346.0,85345.0,1.687316]
[1742476729813,0.03636702,85346.0,85345.0,1.937316]
[1742476730505,0.09986702,85346.0,85345.0,1.937316]
[1742476730712,0.09986702,85346.0,85345.0,1.687316]
[1742476732617,0.06906702,85346.0,85345.0,1.687316]
[1742476733115,0.03636702,85346.0,85345.0,1.687316]
[1742476733318,0.02022474,85346.0,85345.0,1.687316]
[1742476734409,0.02022474,85346.0,85345.0,1.683316]
[1742476734609,0.02022474,85346.0,85345.0,1.685316]
[1742476734811,0.02022474,85346.0,85345.0,2.046116]
[1742476735317,0.02022474,85346.0,85345.0,2.042116]
[1742476735518,0.02022474,85346.0,85345.0,2.043116]
[1742476735719,0.17477836,85352.0,85351.0,0.1172077]
[1742476736016,0.17477836,85352.0,85351.0,0.2302477]
[1742476736223,0.17477836,85352.0,85351.0,0.5685477]
[1742476736418,0.17477836,85352.0,85351.0,2.0685477]
[1742476736618,0.1171869,85367.0,85358.0,0.1171981]
[1742476736826,0.0313,85362.0,85358.0,0.5102381]
[1742476737124,0.0313,85362.0,85361.0,0.117194]
[1742476737422,0.0313,85362.0,85361.0,0.357194]
[1742476737619,0.0313,85362.0,85361.0,0.454494]
[1742476737918,0.0324,85366.0,85365.0,0.1171885]
[1742476738123,0.0332,85367.0,85366.0,0.1171871]
[1742476738725,0.0332,85367.0,85366.0,0.1492871]
[1742476738925,0.0332,85367.0,85366.0,0.19313048]
[1742476739527,0.0372,85367.0,85366.0,0.19313048]
[1742476740429,0.0362,85367.0,85366.0,0.19313048]
[1742476740629,0.0668,85367.0,85366.0,0.19313048]
[1742476741830,0.0668,85367.0,85366.0,0.30617048]
[1742476743030,0.003,85367.0,85366.0,0.30617048]
[1742476743221,4e-05,85390.0,85372.0,0.1171789]
[1742476743222,0.0327,85373.0,85372.0,0.1171789]
[1742476743532,0.0327,85373.0,85372.0,0.4702189]
[1742476743732,0.20973403,85381.0,85380.0,0.1171679]
[1742476743924,0.20973403,85381.0,85380.0,0.2302079]
[1742476744233,0.0327,85382.0,85381.0,0.1171665]
[1742476744424,0.0327,85382.0,85381.0,0.1473665]
[1742476745021,0.0639,85382.0,85381.0,0.1800665]
[1742476746230,0.20973403,85387.0,85386.0,0.1171597]
[1742476746529,0.00017574,85389.0,85388.0,0.1171569]
[1742476746730,0.00017574,85389.0,85388.0,0.2605569]
[1742476747134,0.01636783,85389.0,85388.0,0.2605569]
[1742476747517,0.04656783,85389.0,85388.0,0.2906569]
[1742476747716,0.05668218,85389.0,85388.0,0.29954207]
[1742476747922,0.06667726,85389.0,85388.0,0.29954207]
[1742476749332,0.06667726,85389.0,85388.0,0.31156927]
[1742476749533,0.09947726,85389.0,85388.0,0.31156927]
[1742476750123,0.06667726,85389.0,85388.0,0.31156927]
[1742476750319,0.03647726,85389.0,85388.0,0.31156927]
[1742476751234,0.02028517,85389.0,85388.0,0.31156927]
[1742476752531,0.05308517,85389.0,85388.0,0.31156927]
[1742476752730,0.05308517,85389.0,85388.0,0.54156927]
[1742476752925,0.02028517,85389.0,85388.0,0.54156927]
[1742476753130,0.03644099,85389.0,85388.0,0.54156927]
[1742476753635,0.0328,85392.0,85388.0,0.54156927]
[1742476753636,4e-05,85399.0,85395.0,0.1171473]
[1742476753829,0.0328,85398.0,85397.0,0.1171446]
[1742476754029,0.03284,85398.0,85397.0,0.1811446]
[1742476754333,0.03284,85398.0,85397.0,1.7128446]
[1742476755137,0.03284,85398.0,85397.0,1.6821446]
[1742476755331,0.06424,85398.0,85397.0,1.6821446]
[1742476755535,0.06424,85398.0,85397.0,0.2951446]
[1742476756037,0.06424,85398.0,85397.0,0.2634446]
[1742476756222,0.06424,85398.0,85397.0,0.2301446]
[1742476757738,0.06424,85398.0,85397.0,0.2932446]
[1742476760236,0.06424,85398.0,85397.0,0.1171446]
[1742476760534,0.1813832,85398.0,85397.0,0.2301046]
[1742476760836,0.06424,85398.0,85397.0,0.2301046]
[1742476761134,0.06424,85398.0,85397.0,0.1171446]
[1742476763141,0.06424,85398.0,85397.0,0.1497446]
[1742476765538,0.07414663,85398.0,85397.0,0.1497446]
[1742476765844,0.08405131,85398.0,85397.0,0.1497446]
[1742476767043,0.20119451,85398.0,85397.0,0.1497446]
[1742476767349,0.20119451,85398.0,85397.0,0.1171446]